bitfinex-derivatives/quotes_SOLF0:USTF0_20260226
["timestamp","ask_amount","ask_price","bid_price","bid_amount"]
[1772100039420,22.13180191,88.319,88.27,2.95428839]
[1772100040021,22.13180191,88.319,88.27,24.7845712]
[1772100041223,22.13180191,88.319,88.272,10.1954]
[1772100041526,22.13180191,88.319,88.273,21.83028281]
[1772100042124,10.189,88.328,88.281,21.83028281]
[1772100042523,2.95428839,88.33,88.281,21.83028281]
[1772100042722,22.13180191,88.33,88.282,21.83028281]
[1772100043831,22.13180191,88.349,88.301,21.83028281]
[1772100044029,22.13180191,88.349,88.31,2.95428839]
[1772100045134,22.13180191,88.349,88.308,32.02148281]
[1772100046036,22.13180191,88.349,88.312,10.1907]
[1772100046632,13.13958839,88.36,88.316,10.1903]
[1772100046837,25.0860903,88.36,88.316,32.02058281]
[1772100047132,22.13180191,88.374,88.335,21.83028281]
[1772100047532,22.13180191,88.402,88.351,21.83028281]
[1772100048135,22.13180191,88.409,88.364,21.83028281]
[1772100049028,22.13180191,88.409,88.365,10.1846]
[1772100050736,22.13180191,88.409,88.365,32.01488281]
[1772100051139,22.13180191,88.409,88.369,21.83028281]
[1772100051338,22.13180191,88.409,88.356,21.83028281]
[1772100051540,22.13180191,88.409,88.36,24.77798728]
[1772100052436,22.13180191,88.409,88.373,10.1837]
[1772100052638,22.13180191,88.423,88.38,2.94770447]
[1772100054841,2.94770447,88.43,88.374,21.83028281]
[1772100054842,22.13180191,88.422,88.374,21.83028281]
[1772100055845,24.73951785,88.42,88.374,21.83028281]
[1772100057140,24.73951785,88.42,88.361,22.11643987]
[1772100057344,20.3466,88.464,88.361,22.11643987]
[1772100057345,21.79181338,88.409,88.361,22.11643987]
[1772100057548,21.79181338,88.407,88.361,22.11643987]
[1772100057843,20.3466,88.464,88.314,20.3811]
[1772100057844,2.94770447,88.42,88.371,22.11643987]
[1772100058237,24.73951785,88.42,88.371,22.11643987]
[1772100058940,24.73951785,88.42,88.373,10.1837]
[1772100059141,21.79181338,88.42,88.374,22.11643987]
[1772100061048,21.79181338,88.418,88.361,22.11643987]
[1772100061442,21.79181338,88.418,88.375,10.1835]
[1772100062049,21.79181338,88.418,88.38,10.1828]
[1772100064245,21.79181338,88.418,88.387,10.1821]
[1772100064445,21.79181338,88.418,88.376,22.11643987]
[1772100065546,2.94770447,88.43,88.386,22.11643987]
[1772100065746,21.79181338,88.445,88.401,22.11643987]
[1772100066252,2.94770447,88.45,88.401,22.11643987]
[1772100066454,21.79181338,88.458,88.401,22.11643987]
[1772100066656,21.79181338,88.472,88.421,22.11643987]
[1772100066953,24.73951785,88.48,88.43,2.94770447]
[1772100067149,21.79181338,88.478,88.428,10.1774]
[1772100067346,21.79181338,88.469,88.421,22.11643987]
[1772100067551,21.79181338,88.449,88.4,2.94770447]
[1772100067752,31.96711338,88.447,88.399,10.1807]
[1772100067952,21.79181338,88.447,88.4,2.94770447]
[1772100068153,21.79181338,88.503,88.411,22.11643987]
[1772100068354,21.79181338,88.469,88.411,22.11643987]
[1772100068554,21.79181338,88.469,88.42,2.94770447]
[1772100069156,2.94770447,88.48,88.43,25.06414434]
[1772100069355,24.73951785,88.48,88.43,25.06414434]
[1772100071256,21.79181338,88.478,88.43,22.11643987]
[1772100071453,2.94770447,88.49,88.432,22.11643987]
[1772100071657,31.96221338,88.489,88.432,22.11643987]
[1772100071864,21.79181338,88.488,88.441,22.11643987]
[1772100072155,2.94770447,88.48,88.442,22.11643987]
[1772100072358,24.73951785,88.48,88.428,22.11643987]
[1772100072562,21.79181338,88.469,88.42,2.94770447]
[1772100073063,21.79181338,88.469,88.414,22.11643987]
[1772100073264,24.73951785,88.46,88.414,22.11643987]
[1772100073464,24.73951785,88.45,88.401,22.11643987]
[1772100073959,21.79181338,88.45,88.41,2.94770447]
[1772100074165,10.1739,88.459,88.41,25.06414434]
[1772100075564,24.73951785,88.46,88.41,25.06414434]
[1772100076566,21.79181338,88.46,88.411,10.1793]
[1772100076763,21.79181338,88.46,88.412,22.11643987]
[1772100077170,21.79181338,88.46,88.414,10.1789]
[1772100077364,21.79181338,88.46,88.414,32.29533987]
[1772100077667,21.79181338,88.46,88.42,2.94770447]
[1772100078565,21.79181338,88.46,88.414,22.11643987]
[1772100079062,24.73951785,88.46,88.414,22.11643987]
[1772100081074,31.96571338,88.459,88.414,22.11643987]
[1772100081769,10.1742,88.456,88.414,22.11643987]
[1772100082073,21.79181338,88.449,88.403,22.11643987]
[1772100082367,21.79181338,88.436,88.39,22.11643987]
[1772100082572,21.79181338,88.429,88.376,22.11643987]
[1772100083471,21.79181338,88.429,88.38,2.94770447]
[1772100083871,31.96921338,88.429,88.38,2.94770447]
[1772100084571,21.79181338,88.428,88.38,2.94770447]
[1772100084970,10.1778,88.425,88.38,2.94770447]
[1772100085772,31.97001338,88.422,88.38,2.94770447]
[1772100085968,21.9277078,88.419,88.37,2.94770447]
[1772100086267,21.9277078,88.409,88.363,23.69722397]
[1772100087673,21.9277078,88.409,88.364,10.1848]
[1772100088068,21.9277078,88.409,88.36,2.94770447]
[1772100088279,21.9277078,88.409,88.346,23.69722397]
[1772100088280,21.9277078,88.389,88.346,23.69722397]
[1772100088977,21.9277078,88.389,88.35,2.94770447]
[1772100091374,20.3495,88.452,88.362,23.69722397]
[1772100091375,21.9277078,88.41,88.362,23.69722397]
[1772100091578,21.9277078,88.419,88.371,23.69722397]
[1772100091976,10.18,88.406,88.36,2.94770447]
[1772100092178,21.9277078,88.405,88.354,10.1859]
[1772100092875,10.1804,88.403,88.354,10.1859]
[1772100093072,21.9277078,88.402,88.354,10.1859]
[1772100093672,21.9277078,88.402,88.306,20.383]
[1772100093673,21.9277078,88.409,88.361,23.69722397]
[1772100093875,21.9277078,88.399,88.35,2.94770447]
[1772100094184,21.9277078,88.398,88.351,10.1863]
[1772100094883,21.9277078,88.398,88.351,33.88352397]
[1772100097478,21.9277078,88.398,88.342,10.1872]
[1772100097678,2.94770447,88.4,88.342,10.1872]
[1772100097679,23.22593454,88.389,88.342,10.1872]
[1772100098177,23.22593454,88.389,88.343,22.37293873]
[1772100098782,23.22593454,88.389,88.347,10.1867]
[1772100098982,23.22593454,88.389,88.347,32.55963873]
[1772100099182,23.22593454,88.389,88.35,2.94770447]
[1772100099383,23.22593454,88.387,88.347,22.37293873]
[1772100100585,23.22593454,88.387,88.35,2.94770447]
[1772100101179,23.22593454,88.405,88.344,22.37293873]
[1772100101387,23.22593454,88.389,88.344,22.37293873]
[1772100101586,23.22593454,88.389,88.35,25.3206432]
[1772100101981,23.22593454,88.405,88.361,22.37293873]
[1772100102185,2.94770447,88.42,88.37,2.94770447]
[1772100102378,23.22593454,88.419,88.38,25.3206432]
[1772100102577,23.22593454,88.434,88.39,2.94770447]
[1772100103980,23.22593454,88.434,88.39,13.12940447]
[1772100105583,23.22593454,88.434,88.39,35.5023432]
[1772100107887,23.22593454,88.434,88.39,2.94770447]
[1772100108086,23.22593454,88.434,88.382,10.1827]
[1772100108279,23.22593454,88.434,88.383,22.37293873]
[1772100108479,23.22593454,88.434,88.39,25.3206432]
[1772100109881,23.22593454,88.434,88.392,10.1815]
[1772100110082,23.22593454,88.432,88.39,2.94770447]
[1772100110489,23.22593454,88.432,88.38,2.94770447]
[1772100110887,23.22593454,88.432,88.385,10.1824]
[1772100111386,23.22593454,88.43,88.38,2.94603985]
[1772100111692,23.22593454,88.449,88.4,2.94603985]
[1772100111887,23.22593454,88.436,88.38,2.94603985]
[1772100112691,23.22593454,88.434,88.381,10.1828]
[1772100113091,23.22593454,88.434,88.387,10.182]
[1772100114491,23.22593454,88.434,88.39,2.94603985]
[1772100115498,23.22593454,88.434,88.348,20.3733]
[1772100115499,23.22593454,88.434,88.4,2.94603985]
[1772100116196,23.22593454,88.434,88.392,22.37293873]
[1772100116690,23.22593454,88.434,88.4,2.94603985]
[1772100117090,22.0925852,88.449,88.4,2.94603985]
[1772100117294,22.0925852,88.449,88.4,25.69649544]
[1772100117901,22.0925852,88.448,88.401,10.1804]
[1772100119398,22.0925852,88.448,88.408,10.1797]
[1772100120196,22.0925852,88.444,88.397,10.181]
[1772100120403,22.0925852,88.439,88.38,2.94603985]
[1772100120695,22.0925852,88.429,88.382,10.1827]
[1772100121694,22.0925852,88.426,88.38,2.94603985]
[1772100121899,22.0925852,88.426,88.379,22.75045559]
[1772100122088,22.0925852,88.426,88.37,2.94603985]
[1772100122889,22.0925852,88.418,88.37,2.94603985]
[1772100123295,22.0925852,88.418,88.367,10.1844]
[1772100123693,9.08440418,88.455,88.307,33.99]
[1772100123694,22.0925852,88.409,88.353,22.75045559]
[1772100123898,22.0925852,88.399,88.353,22.75045559]
[1772100124404,22.0925852,88.398,88.353,22.75045559]
[1772100124903,22.0925852,88.398,88.36,2.94603985]
[1772100125504,22.0925852,88.398,88.353,22.75045559]
[1772100125702,20.3528,88.438,88.353,22.75045559]
[1772100125703,22.0925852,88.397,88.353,22.75045559]
[1772100125906,22.0925852,88.389,88.339,22.75045559]
[1772100126106,22.0925852,88.389,88.33,2.94603985]
[1772100126902,22.0925852,88.377,88.324,10.1894]
[1772100127104,22.0925852,88.369,88.324,10.1894]
[1772100128411,20.357,88.419,88.341,22.75045559]
[1772100128412,2.94603985,88.39,88.341,22.75045559]
[1772100128909,22.0925852,88.389,88.341,22.75045559]
[1772100129307,22.0925852,88.379,88.33,2.94603985]
[1772100129807,22.0925852,88.379,88.33,25.69649544]
[1772100130403,22.0925852,88.379,88.337,10.1878]
[1772100132413,22.0925852,88.379,88.34,10.1874]
[1772100132614,22.0925852,88.379,88.338,22.75045559]
[1772100136417,22.0925852,88.379,88.333,10.1883]
[1772100136614,22.0925852,88.376,88.325,10.1892]
[1772100136913,22.0925852,88.376,88.325,22.75045559]
[1772100137308,22.0925852,88.376,88.33,2.94603985]
[1772100137921,22.0925852,88.376,88.331,10.1885]
[1772100138920,22.0925852,88.374,88.331,10.1885]
[1772100139520,22.0925852,88.359,88.3,2.94603985]
[1772100139816,22.0925852,88.339,88.293,22.75045559]
[1772100140010,22.0925852,88.339,88.28,22.75045559]
[1772100140210,25.03862505,88.33,88.287,10.1936]
[1772100141019,25.03862505,88.33,88.28,25.69649544]
[1772100141719,33.99,88.393,88.244,1.97051587]
[1772100141720,22.0925852,88.319,88.273,10.1953]
[1772100144123,22.0925852,88.319,88.264,10.1963]
[1772100144724,22.0925852,88.319,88.272,10.1954]
[1772100145126,22.0925852,88.319,88.282,10.1942]
[1772100145828,22.0925852,88.339,88.29,2.94603985]
[1772100146824,23.5790031,88.337,88.29,2.94603985]
[1772100147024,23.5790031,88.337,88.284,10.1939]
[1772100147331,23.5790031,88.337,88.3,2.94603985]
[1772100148231,23.5790031,88.337,88.233,1.97076696]
[1772100148232,23.5790031,88.369,88.311,23.64060405]
[1772100148428,23.5790031,88.369,88.32,2.94603985]
[1772100148821,23.5790031,88.369,88.252,33.99]
[1772100148822,23.5790031,88.369,88.33,2.94603985]
[1772100149027,23.5790031,88.383,88.35,2.94603985]
[1772100150226,23.5790031,88.381,88.34,2.94603985]
[1772100150430,23.5790031,88.381,88.287,20.3874]
[1772100150431,23.5790031,88.379,88.32,2.94603985]
[1772100150621,23.5790031,88.379,88.32,26.5866439]
[1772100150823,23.5790031,88.379,88.33,2.94603985]
[1772100151632,2.94603985,88.39,88.33,2.94603985]
[1772100151633,23.5790031,88.377,88.33,2.94603985]
[1772100151829,23.5790031,88.369,88.32,2.94603985]
[1772100152231,23.5790031,88.369,88.33,2.94603985]
[1772100152433,23.5790031,88.389,88.33,2.94603985]
[1772100152735,23.5790031,88.389,88.34,2.94603985]
[1772100153431,23.5790031,88.384,88.33,2.94603985]
[1772100154636,23.5790031,88.377,88.33,2.94603985]
[1772100156433,22.65441412,88.392,88.34,26.7141706]
[1772100156633,22.65441412,88.392,88.35,2.94603985]
[1772100157037,22.65441412,88.39,88.35,2.94603985]
[1772100158133,22.65441412,88.387,88.34,2.94603985]
[1772100159236,22.65441412,88.387,88.335,10.1881]
[1772100159437,2.94603985,88.39,88.33,2.94603985]
[1772100159438,22.65441412,88.384,88.33,2.94603985]
[1772100160040,22.65441412,88.378,88.332,10.1884]
[1772100161242,22.65441412,88.376,88.33,2.94603985]
[1772100162641,22.65441412,88.373,88.33,2.94603985]
[1772100162943,22.65441412,88.359,88.31,2.94603985]
[1772100163142,22.65441412,88.359,88.3,2.94603985]
[1772100163945,2.94603985,88.36,88.3,2.94603985]
[1772100163946,22.65441412,88.353,88.301,10.192]
[1772100165241,22.65441412,88.349,88.301,10.192]
[1772100165545,22.65441412,88.369,88.31,2.94603985]
[1772100166641,22.65441412,88.354,88.311,10.1908]
[1772100166848,22.65441412,88.354,88.31,2.94603985]
[1772100167444,22.65441412,88.354,88.31,13.13703985]
[1772100171249,22.65441412,88.354,88.31,10.191]
[1772100171447,22.65441412,88.354,88.31,13.13703985]
[1772100171858,22.65441412,88.351,88.302,10.1919]
[1772100174152,22.65441412,88.349,88.302,10.1919]
[1772100174447,22.65441412,88.349,88.295,10.1926]
[1772100174646,22.65441412,88.339,88.29,2.95124391]
[1772100175349,22.65441412,88.359,88.31,2.95124391]
[1772100175945,10.1859,88.355,88.31,2.95124391]
[1772100176150,33.39761477,88.355,88.31,2.95124391]
[1772100176351,23.21171477,88.354,88.31,2.95124391]
[1772100178956,23.21171477,88.354,88.32,2.95124391]
[1772100179848,23.21171477,88.354,88.321,10.1897]
[1772100180451,23.21171477,88.379,88.332,10.1884]
[1772100181761,23.21171477,88.376,88.332,10.1884]
[1772100184053,23.21171477,88.373,88.325,10.1892]
[1772100184358,23.21171477,88.373,88.33,2.95124391]
[1772100184858,23.21171477,88.37,88.33,2.95124391]
[1772100188655,23.21171477,88.37,88.331,10.1886]
[1772100188854,23.21171477,88.382,88.34,2.95124391]
[1772100189160,23.21171477,88.399,88.36,2.95124391]
[1772100190854,23.21171477,88.399,88.34,25.97102624]
[1772100191256,23.21171477,88.389,88.33,2.95124391]
[1772100191462,23.21171477,88.389,88.33,25.97102624]
[1772100192967,23.21171477,88.385,88.336,10.188]
[1772100193763,23.21171477,88.385,88.34,2.95124391]
[1772100195757,23.21171477,88.385,88.341,10.1874]
[1772100195961,23.21171477,88.385,88.35,2.95124391]
[1772100196867,23.21171477,88.401,88.36,2.95124391]
[1772100198778,23.21171477,88.401,88.358,10.1854]
[1772100198967,23.21171477,88.401,88.36,2.95124391]
[1772100200664,23.21171477,88.401,88.37,2.95124391]
[1772100200865,2.95124391,88.43,88.37,2.95124391]
[1772100201069,23.21171477,88.429,88.363,23.01978233]
[1772100201272,23.21171477,88.429,88.38,2.95124391]
[1772100201663,10.1779,88.424,88.38,2.95124391]
[1772100201864,23.21171477,88.429,88.39,2.95124391]
[1772100203675,23.21171477,88.425,88.37,2.95124391]
[1772100203974,23.21171477,88.419,88.37,2.95124391]
[1772100204567,23.21171477,88.417,88.372,10.1838]
[1772100204773,23.21171477,88.417,88.363,23.01978233]
[1772100205978,23.69281147,88.415,88.37,2.95124391]
[1772100207975,10.54372199,88.475,88.36,2.95124391]
[1772100207976,23.69281147,88.409,88.36,2.95124391]
[1772100208982,10.1803,88.404,88.36,2.95124391]
[1772100209182,23.69281147,88.403,88.36,2.95124391]
[1772100210981,23.69281147,88.403,88.355,10.1858]
[1772100214188,23.69281147,88.378,88.33,2.95124391]
[1772100214387,23.69281147,88.378,88.322,21.70685483]
[1772100214592,23.69281147,88.378,88.33,2.95124391]
[1772100214787,23.69281147,88.378,88.322,21.70685483]
[1772100215887,23.69281147,88.369,88.32,2.95124391]
[1772100216086,23.69281147,88.369,88.32,24.65809874]
[1772100216885,23.69281147,88.369,88.323,34.03381198]
[1772100217287,23.69281147,88.369,88.33,2.95124391]
[1772100218886,23.69281147,88.369,88.323,23.84441198]
[1772100219279,23.69281147,88.369,88.315,10.1904]
[1772100219482,23.69281147,88.369,88.322,10.1896]
[1772100220187,23.68121322,88.368,88.321,23.84441198]
[1772100220989,23.68121322,88.366,88.321,23.84441198]
[1772100223486,23.68121322,88.366,88.269,33.99]
[1772100223487,23.68121322,88.396,88.352,23.84441198]
[1772100224381,23.68121322,88.396,88.36,2.95124391]
[1772100225185,23.68121322,88.411,88.36,2.95124391]
[1772100225890,23.68121322,88.411,88.37,2.95124391]
[1772100227086,23.68121322,88.41,88.361,10.1851]
[1772100228186,23.68121322,88.408,88.353,34.03041198]
[1772100228492,23.68121322,88.408,88.36,2.95124391]
[1772100228896,23.68121322,88.399,88.35,2.95124391]
[1772100229997,26.63245713,88.39,88.34,2.95124391]
[1772100230494,23.68121322,88.387,88.34,2.95124391]
[1772100230885,23.68121322,88.387,88.33,2.95124391]
[1772100231996,23.68121322,88.382,88.331,10.1886]
[1772100232187,23.68121322,88.382,88.33,2.95124391]
[1772100232188,23.68121322,88.382,88.34,2.95124391]
[1772100233189,23.68121322,88.382,88.33,23.84441198]
[1772100233394,23.68121322,88.382,88.34,2.94876476]
[1772100237909,23.68121322,88.382,88.33,23.84441198]
[1772100238206,23.60088791,88.379,88.33,26.79317674]
[1772100239604,23.60088791,88.377,88.331,10.1885]
[1772100240598,23.60088791,88.377,88.34,26.88820383]
[1772100240803,23.60088791,88.386,88.34,26.88820383]
[1772100241502,23.60088791,88.384,88.34,26.88820383]
[1772100241704,23.60088791,88.379,88.324,23.93943907]
[1772100242006,23.60088791,88.379,88.33,2.94876476]
[1772100242200,23.60088791,88.379,88.332,23.93943907]
[1772100242403,23.60088791,88.379,88.341,23.93943907]
[1772100244105,23.60088791,88.379,88.341,34.12683907]
[1772100245804,23.60088791,88.396,88.351,23.93943907]
[1772100246910,23.60088791,88.396,88.356,10.1856]
[1772100247915,23.60088791,88.411,88.38,2.94876476]
[1772100249209,23.60088791,88.411,88.39,2.94876476]
[1772100249710,23.60088791,88.411,88.38,2.94876476]
[1772100251105,23.60088791,88.411,88.37,2.94876476]
[1772100251311,23.60088791,88.409,88.36,2.94876476]
[1772100251512,20.3505,88.448,88.35,2.94876476]
[1772100251513,23.60088791,88.399,88.35,2.94876476]
[1772100251711,23.60088791,88.399,88.34,2.94876476]
[1772100252909,23.60088791,88.392,88.341,10.1874]
[1772100253911,23.60088791,88.389,88.341,10.1874]
[1772100254408,23.60088791,88.389,88.35,2.94876476]
[1772100255918,23.60088791,88.389,88.341,10.1874]
[1772100257016,33.78278791,88.389,88.34,2.94876476]
[1772100257217,23.60088791,88.388,88.34,2.94876476]
[1772100257718,23.60088791,88.388,88.34,13.13626476]
[1772100257920,23.60088791,88.388,88.341,23.93943907]
[1772100259024,23.60088791,88.388,88.342,10.1872]
[1772100259830,23.60088791,88.387,88.342,10.1872]
[1772100262531,23.60088791,88.387,88.35,2.94876476]
[1772100264025,23.60088791,88.387,88.353,10.186]
[1772100264327,13.27584835,88.386,88.36,2.94876476]
[1772100264533,13.27584835,88.385,88.36,2.94876476]
[1772100264736,13.27584835,88.384,88.353,31.41980569]
[1772100265035,13.27584835,88.383,88.353,31.41980569]
[1772100265228,13.27584835,88.382,88.353,31.41980569]
[1772100265535,23.60088791,88.387,88.353,31.41980569]
[1772100266227,21.84254145,88.397,88.35,2.94876476]
[1772100266427,21.84254145,88.395,88.34,2.94876476]
[1772100267932,21.84254145,88.386,88.34,2.94876476]
[1772100269036,21.84254145,88.386,88.341,10.1874]
[1772100269226,21.84254145,88.386,88.34,2.94876476]
[1772100269227,21.84254145,88.386,88.342,23.10889092]
[1772100270942,21.84254145,88.386,88.343,10.1871]
[1772100271837,21.84254145,88.386,88.35,26.05765568]
[1772100272039,21.84254145,88.393,88.35,26.05765568]
[1772100273042,21.84254145,88.393,88.351,33.29509092]
[1772100275743,21.84254145,88.393,88.352,23.10889092]
[1772100282352,23.8388076,88.391,88.352,23.10889092]
[1772100285054,23.8388076,88.379,88.321,23.73458077]
[1772100285551,23.8388076,88.379,88.33,26.68334553]
[1772100285954,23.8388076,88.379,88.336,10.1879]
[1772100286252,23.8388076,88.379,88.33,26.68334553]
[1772100287455,23.8388076,88.377,88.332,10.1884]
[1772100287957,23.8388076,88.377,88.333,23.73458077]
[1772100288956,23.8388076,88.377,88.336,10.188]
[1772100291257,23.8388076,88.369,88.32,2.94876476]
[1772100291460,23.8388076,88.369,88.321,23.73458077]
[1772100292155,23.8388076,88.369,88.33,26.68334553]
[1772100293062,23.8388076,88.369,88.337,10.1878]
[1772100294462,23.8388076,88.369,88.33,10.1887]
[1772100295264,23.8388076,88.369,88.33,13.13845951]
[1772100299463,23.8388076,88.369,88.33,10.1887]
[1772100301371,23.8388076,88.369,88.33,34.12180753]
[1772100302067,23.8388076,88.369,88.332,10.1885]
[1772100302771,23.8388076,88.369,88.32,26.88286704]
[1772100302970,23.6996839,88.359,88.31,26.88286704]
[1772100303773,23.6996839,88.357,88.31,23.93310753]
[1772100304873,23.6996839,88.329,88.275,23.93310753]
[1772100306572,23.6996839,88.329,88.284,10.1939]
[1772100306873,23.6996839,88.329,88.285,23.93310753]
[1772100307076,23.6996839,88.329,88.286,10.1937]
[1772100307472,23.6996839,88.329,88.273,23.93310753]
[1772100307669,26.64944341,88.32,88.273,23.93310753]
[1772100307875,23.6996839,88.309,88.26,2.94975951]
[1772100308176,23.6996839,88.309,88.26,26.88286704]
[1772100308471,23.6996839,88.299,88.25,26.88286704]
[1772100309080,23.6996839,88.297,88.25,23.93310753]
[1772100309276,23.6996839,88.289,88.23,2.94975951]
[1772100309477,23.6996839,88.279,88.224,23.93310753]
[1772100310779,23.6996839,88.279,88.24,2.94975951]
[1772100311079,23.6996839,88.279,88.23,26.88286704]
[1772100313073,23.6996839,88.297,88.251,23.93310753]
[1772100313680,23.6996839,88.297,88.25,2.94975951]
[1772100314180,23.6996839,88.279,88.225,23.93310753]
[1772100315682,23.6996839,88.279,88.23,2.94975951]
[1772100320383,23.6996839,88.279,88.232,34.13310753]
[1772100320587,23.6996839,88.279,88.24,2.94975951]
[1772100320889,23.6996839,88.279,88.232,34.13310753]
[1772100321784,23.6996839,88.279,88.234,34.13280753]
[1772100322581,23.6996839,88.279,88.236,34.13260753]
[1772100323989,23.6996839,88.279,88.237,23.93310753]
[1772100326394,22.59040604,88.296,88.24,25.39483662]
[1772100326589,22.59040604,88.289,88.24,25.39483662]
[1772100327087,22.59040604,88.289,88.24,22.44507711]
[1772100327291,22.59040604,88.289,88.24,25.39483662]
[1772100327994,22.59040604,88.289,88.241,10.1989]
[1772100329791,22.59040604,88.289,88.242,22.44507711]
[1772100329996,22.59040604,88.315,88.28,2.94975951]
[1772100330397,22.59040604,88.315,88.27,22.44507711]
[1772100330398,22.59040604,88.328,88.29,2.94975951]
[1772100330695,22.59040604,88.328,88.27,2.94975951]
[1772100331994,22.59040604,88.32,88.271,10.1954]
[1772100336397,22.59040604,88.32,88.27,2.94975951]
[1772100336398,25.54016555,88.32,88.27,2.94975951]
[1772100336601,10.1903,88.316,88.27,2.94975951]
[1772100336900,21.80959122,88.315,88.27,2.94975951]
[1772100338203,21.80959122,88.315,88.264,10.1963]
[1772100338603,21.80959122,88.315,88.27,2.94975951]
[1772100343705,21.80959122,88.313,88.258,22.03206573]
[1772100343912,21.80959122,88.313,88.221,20.4025]
[1772100343913,21.80959122,88.313,88.261,22.03206573]
[1772100344314,24.75935073,88.31,88.26,2.94975951]
[1772100344613,24.75935073,88.31,88.251,22.03206573]
[1772100345910,21.80959122,88.298,88.251,22.03206573]
[1772100346911,21.80959122,88.295,88.24,24.98182524]
[1772100347111,21.80959122,88.289,88.24,24.98182524]
[1772100347417,21.80959122,88.279,88.232,22.03206573]
[1772100348513,21.80959122,88.279,88.233,10.1998]
[1772100349014,21.80959122,88.279,88.233,32.23186573]
[1772100349215,21.80959122,88.292,88.25,2.94975951]
[1772100349519,21.80959122,88.292,88.25,24.98182524]
[1772100351123,21.80959122,88.307,88.26,2.94975951]
[1772100351322,21.80959122,88.307,88.26,24.98182524]
[1772100351924,21.80959122,88.307,88.263,10.1964]
[1772100352622,21.80959122,88.307,88.27,2.94975951]
[1772100352920,21.80959122,88.329,88.27,24.98182524]
[1772100353716,21.80959122,88.323,88.273,22.03206573]
[1772100353915,21.80959122,88.323,88.28,24.98182524]
[1772100354920,21.80959122,88.323,88.289,10.1934]
[1772100355818,10.1875,88.341,88.239,20.3983]
[1772100355819,21.80959122,88.319,88.267,22.03206573]
[1772100357021,21.80959122,88.319,88.271,10.1954]
[1772100358323,10.1888,88.33,88.281,22.58912277]
[1772100358619,22.17604541,88.332,88.29,25.54184143]
[1772100360022,22.17604541,88.329,88.28,2.95271866]
[1772100361125,22.17604541,88.328,88.28,2.95271866]
[1772100363620,22.17604541,88.328,88.28,25.54184143]
[1772100363828,25.12876407,88.34,88.291,22.58912277]
[1772100364725,22.17604541,88.34,88.293,10.193]
[1772100365027,22.17604541,88.34,88.3,2.95271866]
[1772100365829,22.17604541,88.34,88.302,10.1919]
[1772100366725,22.17604541,88.369,88.32,2.95271866]
[1772100367026,22.17604541,88.389,88.34,2.95271866]
[1772100367225,22.17604541,88.389,88.35,2.95271866]
[1772100367530,22.17604541,88.389,88.295,34.0]
[1772100367531,22.17604541,88.379,88.33,2.95271866]
[1772100368223,22.17604541,88.379,88.33,13.14131866]
[1772100369025,22.17604541,88.378,88.33,13.14131866]
[1772100371132,22.17604541,88.378,88.33,35.73044143]
[1772100371331,22.17604541,88.378,88.334,10.1882]
[1772100375030,22.17604541,88.378,88.34,25.54184143]
[1772100375232,22.17604541,88.399,88.34,2.95271866]
[1772100375437,22.17604541,88.379,88.324,22.58912277]
[1772100375635,22.17604541,88.376,88.325,22.58912277]
[1772100377937,22.17604541,88.374,88.325,22.58912277]
[1772100379937,22.17604541,88.374,88.326,10.1892]
[1772100380137,22.17604541,88.374,88.33,2.95271866]
[1772100382036,22.17604541,88.372,88.33,2.95271866]
[1772100382339,22.17604541,88.369,88.288,22.58912277]
[1772100382539,22.17604541,88.356,88.305,22.58912277]
[1772100382741,22.17604541,88.349,88.305,22.58912277]
[1772100383441,22.17604541,88.349,88.3,2.95271866]
[1772100383641,22.17604541,88.339,88.292,22.58912277]
[1772100384248,22.17604541,88.337,88.292,22.58912277]
[1772100384448,22.17604541,88.349,88.301,22.58912277]
[1772100384947,22.17604541,88.349,88.311,22.58912277]
[1772100387749,34.0,88.424,88.266,20.3921]
[1772100387750,22.33373383,88.369,88.32,25.7177168]
[1772100388050,22.33373383,88.369,88.33,25.7177168]
[1772100388250,22.33373383,88.369,88.331,10.1885]
[1772100389749,22.33373383,88.382,88.334,22.76499814]
[1772100390848,22.33373383,88.382,88.335,10.1881]
[1772100391154,18.4635964,88.408,88.33,2.95271866]
[1772100391155,25.28645249,88.38,88.33,2.95271866]
[1772100392054,22.33373383,88.371,88.331,32.95359814]
[1772100396756,22.33373383,88.371,88.331,22.76499814]
[1772100397752,22.33373383,88.371,88.331,32.95359814]
[1772100398653,22.43124316,88.402,88.35,21.94471871]
[1772100398861,22.43124316,88.399,88.34,2.95271866]
[1772100399062,22.43124316,88.399,88.341,21.94471871]
[1772100399857,22.43124316,88.389,88.341,32.13211871]
[1772100400253,22.43124316,88.389,88.342,21.94471871]
[1772100400855,22.43124316,88.387,88.345,10.1869]
[1772100401162,22.43124316,88.387,88.342,21.94471871]
[1772100401960,22.43124316,88.387,88.343,10.1872]
[1772100403664,22.43124316,88.386,88.343,10.1872]
[1772100404861,22.43124316,88.384,88.343,10.1872]
[1772100405868,22.43124316,88.383,88.343,10.1872]
[1772100408570,22.43124316,88.409,88.351,21.94471871]
[1772100408864,158.2502,88.465,88.338,21.94471871]